fUSD/lending_fUSD_20250820
["ID","MTS","AMOUNT","RATE_DAILY","PERIOD"]
[380388100,1755721851255,-426.0,0.00027616,14]
[380388101,1755721851264,-150.0,0.00027625,7]
[380388102,1755721851274,-150.0,0.00027625,7]
[380388103,1755721851283,-150.0,0.00027644,7]
[380388104,1755721851293,-150.0,0.00027644,7]
[380388105,1755721851302,-150.0,0.00027649,7]
[380388106,1755721851312,-150.0,0.00027656,7]
[380388107,1755721851322,-150.0,0.00027662,7]
[380388108,1755721851331,-400.0,0.00027671,2]
[380388109,1755721851341,-444.0,0.00027671,14]
[380388110,1755721851350,-330.0,0.00027671,14]
[380388111,1755721851360,-266.0,0.00027671,14]
[380388112,1755721851370,-272.0,0.00027671,14]
[380388113,1755721851380,-546.0,0.00027671,14]
[380388114,1755721851390,-197.0,0.00027671,14]
[380388115,1755721851400,-200.0,0.00027672,2]
[380388116,1755721851410,-500.0,0.00027672,2]
[380388117,1755721851420,-150.0,0.00027672,2]
[380388118,1755721851430,-500.0,0.00027672,2]
[380388119,1755721851441,-549.0,0.00027672,2]
[380388120,1755721851452,-453.0,0.00027672,2]
[380388121,1755721851463,-500.0,0.00027672,2]
[380388122,1755721851473,-500.0,0.00027672,2]
[380388123,1755721851483,-150.0,0.00027672,2]
[380388124,1755721851494,-500.0,0.00027672,2]
[380388125,1755721851504,-500.0,0.00027673,5]
[380388126,1755721851515,-150.0,0.00027692,7]
[380388127,1755721851525,-400.0,0.000277,15]
[380388128,1755721851534,-56623.74099512,0.00027707,8]
[380388129,1755721851544,-2345.08,0.00027712,15]
[380388130,1755721851554,-2345.08,0.00027712,15]
[380388131,1755721851563,-150.0,0.00027722,7]
[380388132,1755721851572,-150.0,0.00027739,7]
[380388133,1755721851582,-150.0,0.00027739,7]
[380388134,1755721851591,-150.0,0.00027744,7]
[380388135,1755721851600,-600.0,0.00027754,2]
[380388136,1755721851609,-150.0,0.00027776,7]
[380388137,1755721851619,-150.0,0.00027776,7]
[380388138,1755721851629,-150.0,0.00027776,7]
[380388139,1755721851638,-150.0,0.00027776,7]
[380388140,1755721851647,-150.0,0.00027776,7]
[380388141,1755721851657,-235.58574627,0.0002778,2]
[380388142,1755721851669,-150.0,0.00027786,7]
[380388143,1755721851679,-473.0815203,0.000278,2]
[380388144,1755721851688,-400.0,0.00027808,2]
[380388145,1755721851697,-150.0,0.00027808,7]
[380388146,1755721851707,-150.0,0.00027825,7]
[380388147,1755721851717,-150.0,0.00027833,7]
[380388148,1755721851726,-150.0,0.00027833,7]
[380388149,1755721851735,-1848.3985993,0.00027861,2]
[380388150,1755721851745,-500.0,0.00027873,5]
[380388151,1755721851754,-500.0,0.00027874,7]
[380388152,1755721851763,-700.0,0.00027874,7]
[380388153,1755721851773,-200.0,0.00027876,2]
[380388154,1755721851782,-150.0,0.0002788,7]
[380388155,1755721851792,-1776.4147135,0.00027881,2]
[380388156,1755721851801,-150.0,0.00027897,7]
[380388157,1755721851810,-179014.56044687,0.000279,3]
[380388158,1755721851820,-682.57613927,0.000279,3]
[380388159,1755721851829,-843.97594471,0.000279,3]
[380388160,1755721851840,-151.0,0.000279,7]
[380388161,1755721851851,-151.0,0.000279,7]
[380388162,1755721851861,-151.0,0.000279,7]
[380388163,1755721851870,-151.0,0.000279,7]
[380388164,1755721851879,-151.0,0.000279,7]
[380388165,1755721851888,-151.0,0.000279,7]
[380388166,1755721851898,-151.0,0.000279,7]
[380388167,1755721851907,-151.0,0.000279,7]
[380388168,1755721851917,-427.754815,0.000279,7]
[380388169,1755721851926,-427.754815,0.000279,7]
[380388170,1755721851936,-427.754815,0.000279,7]
[380388171,1755721851945,-427.754815,0.000279,7]
[380388172,1755721851955,-182.838418,0.000279,7]
[380388173,1755721851964,-151.0,0.000279,7]
[380388174,1755721851974,-151.0,0.000279,7]
[380388175,1755721851984,-151.0,0.000279,7]
[380388176,1755721851993,-151.0,0.000279,7]
[380388177,1755721852002,-151.0,0.000279,7]
[380388178,1755721852012,-151.0,0.000279,7]
[380388179,1755721852022,-151.0,0.000279,7]
[380388180,1755721852031,-151.0,0.000279,7]
[380388181,1755721852040,-214.645999,0.000279,7]
[380388182,1755721852050,-214.645999,0.000279,7]
[380388183,1755721852059,-214.645999,0.000279,7]
[380388184,1755721852068,-214.645999,0.000279,7]
[380388185,1755721852079,-151.0,0.000279,7]
[380388186,1755721852089,-151.0,0.000279,7]
[380388187,1755721852102,-151.0,0.000279,7]
[380388188,1755721852121,-150.0,0.00027907,7]
[380388189,1755721852136,-150.0,0.00027918,30]
[380388190,1755721852146,-720.64912876,0.00027926,2]
[380388191,1755721852156,-559.59679059,0.00027926,2]
[380388192,1755721852168,-150.0,0.00027927,7]
[380388193,1755721852178,-150.0,0.00027927,7]
[380388194,1755721852188,-150.0,0.00027927,7]
[380388195,1755721852197,-150.0,0.00027927,7]
[380388196,1755721852207,-150.0,0.00027927,7]
[380388197,1755721852216,-400.0,0.00027945,2]
[380388198,1755721852226,-546.0,0.00027945,14]
[380388199,1755721852235,-600.0,0.00027945,5]
[380388200,1755721852245,-500.0,0.00027946,2]
[380388201,1755721852255,-215.0,0.00027946,2]
[380388202,1755721852264,-500.0,0.00027946,2]
[380388203,1755721852274,-453.0,0.00027946,2]
[380388204,1755721852284,-500.0,0.00027946,2]
[380388205,1755721852293,-500.0,0.00027946,2]
[380388206,1755721852302,-150.0,0.00027946,2]
[380388207,1755721852312,-500.0,0.00027946,2]
[380388208,1755721852321,-500.0,0.00027962,120]
[380388209,1755721852330,-2000.0,0.00027962,120]
[380388210,1755721852340,-500.0,0.00027962,120]
[380388211,1755721852350,-150.0,0.00027967,7]
[380388212,1755721852359,-150.0,0.00027975,7]
[380388213,1755721852368,-150.0,0.00027978,7]
[380388214,1755721852378,-2345.08,0.00027986,15]
[380388215,1755721852387,-2345.08,0.00027986,15]
[380388216,1755721852396,-150.0,0.00027989,7]
[380388217,1755721852405,-150.0,0.00027996,7]
[380388218,1755721852416,-150.0,0.00027997,2]
[380388219,1755721852426,-150.0,0.00027997,2]
[380388220,1755721852436,-150.0,0.00027997,2]
[380388221,1755721852447,-150.0,0.00027997,2]
[380388222,1755721852456,-150.0,0.00027997,2]
[380388223,1755721852466,-150.0,0.00027997,2]
[380388224,1755721852475,-150.0,0.00027997,2]
[380388225,1755721852484,-150.0,0.00027997,2]
[380388226,1755721852494,-150.0,0.00027997,2]
[380388227,1755721852503,-150.0,0.00027997,2]
[380388228,1755721852512,-150.0,0.00027997,2]
[380388229,1755721852521,-150.0,0.00027997,2]
[380388230,1755721852531,-150.0,0.00027997,2]
[380388231,1755721852540,-150.0,0.00027997,2]
[380388232,1755721852550,-150.0,0.00027997,2]
[380388233,1755721852559,-150.0,0.00027997,2]
[380388234,1755721852569,-150.0,0.00027997,2]
[380388235,1755721852578,-150.0,0.00027997,2]
[380388236,1755721852587,-150.0,0.00027997,2]
[380388237,1755721852596,-279.17,0.00028,2]
[380388238,1755721852606,-500.0,0.00028,2]
[380388239,1755721852615,-500.75490201,0.00028,2]
[380388240,1755721852624,-100000.0,0.00028,4]
[380388241,1755721852634,-150.0,0.00028,30]
[380388242,1755721852643,-250.0,0.00028,7]
[380388243,1755721852653,-12705.41700509,0.00028,2]
[380388244,1755721852662,-508.11300482,0.00028,2]
[380388245,1755721852672,-1266.0,0.00028,2]
[380388246,1755721852681,-858.0,0.00028,2]
[380388247,1755721852690,-203.0,0.00028,2]
[380388248,1755721852700,-458.46930693,0.00028,3]
[380388249,1755721852709,-7318.2,0.00028,7]
[380388250,1755721852718,-1000.0,0.00028,2]
[380388251,1755721852727,-200.0,0.00028,18]
[380388252,1755721852737,-1005.48283241,0.00028,7]
[380388253,1755721852747,-4000.0,0.00028,4]
[380388254,1755721852756,-162.69,0.00028,2]
[380388255,1755721852765,-3600.0,0.00028,29]
[380388256,1755721852774,-204.78424894,0.00028,14]
[380388257,1755721852783,-150.0,0.00028018,7]
[380388258,1755721852792,-1000.0,0.00028021,5]
[380388259,1755721852802,-250.0,0.00028021,5]
[380388260,1755721852811,-150.0,0.00028022,7]
[380388261,1755721852820,-150.0,0.00028022,7]
[380388262,1755721852829,-394.0,0.00028031,14]
[380388263,1755721852839,-1321.0,0.00028031,14]
[380388264,1755721853204,-426.0,0.00028031,14]
[380388265,1755721853271,-150.0,0.00028069,7]
[380388266,1755721853280,-150.0,0.0002807,7]
[380388267,1755721853290,-150.0,0.00028078,7]
[380388268,1755721853299,-150.0,0.00028078,7]
[380388269,1755721853308,-150.0,0.00028078,7]
[380388270,1755721853318,-231.0,0.0002808,2]
[380388271,1755721853328,-400.0,0.00028082,2]
[380388272,1755721853338,-153297.15,0.000281,7]
[380388273,1755721853348,-150.0,0.00028116,7]
[380388274,1755721853359,-150.0,0.00028116,7]
[380388275,1755721853369,-150.0,0.00028126,7]
[380388276,1755721853377,-150.0,0.00028139,7]
[380388277,1755721853387,-150.0,0.00028152,7]
[380388278,1755721853396,-200.0,0.00028155,2]
[380388279,1755721853407,-150.0,0.00028163,7]
[380388280,1755721853417,-323.41,0.00028179,120]
[380388281,1755721853426,-150.0,0.00028179,7]
[380388282,1755721853437,-150.0,0.0002821,7]
[380388283,1755721853446,-150.0,0.0002821,7]
[380388284,1755721853456,-400.0,0.00028219,2]
[380388285,1755721853467,-1186.47,0.00028219,7]
[380388286,1755721853476,-546.0,0.00028219,14]
[380388287,1755721853486,-500.0,0.0002822,2]
[380388288,1755721853496,-220.34296495,0.0002822,2]
[380388289,1755721853507,-453.0,0.0002822,2]
[380388290,1755721853517,-500.0,0.0002822,2]
[380388291,1755721853526,-500.0,0.0002822,2]
[380388292,1755721853536,-150.0,0.0002822,2]
[380388293,1755721853545,-500.0,0.0002822,2]
[380388294,1755721853555,-1000.0,0.00028221,5]
[380388295,1755721853564,-150.0,0.00028229,7]
[380388296,1755721853573,-150.0,0.00028229,7]
[380388297,1755721853583,-150.0,0.00028233,7]
[380388298,1755721853593,-2222.22,0.00028251,30]
[380388299,1755721853602,-150.0,0.00028258,7]
[380388300,1755721853612,-150.0,0.0002826,7]
[380388301,1755721853621,-150.0,0.0002827,7]
[380388302,1755721853631,-1321.0,0.00028272,14]
[380388303,1755721853640,-495.0,0.00028272,14]
[380388304,1755721853650,-150.0,0.00028285,7]
[380388305,1755721853659,-150.0,0.00028305,7]
[380388306,1755721853669,-150.0,0.00028305,7]
[380388307,1755721853678,-473.08152029,0.0002831,2]
[380388308,1755721853687,-150.0,0.00028315,7]
[380388309,1755721853697,-239.66,0.00028317,120]
[380388310,1755721853706,-150.0,0.00028352,7]
[380388311,1755721853716,-400.0,0.00028356,2]
[380388312,1755721853725,-150.0,0.0002838,7]
[380388313,1755721853734,-150.0,0.0002838,7]
[380388314,1755721853744,-150.0,0.0002838,7]
[380388315,1755721853753,-150.0,0.0002838,7]
[380388316,1755721853763,-150.0,0.0002838,7]
[380388317,1755721853773,-150.0,0.00028397,7]
[380388318,1755721853782,-150.0,0.00028399,7]
[380388319,1755721853791,-150.0,0.00028399,7]
[380388320,1755721853801,-1000.0,0.00028421,5]
[380388321,1755721853810,-200.0,0.00028436,2]
[380388322,1755721853820,-150.0,0.00028444,7]
[380388323,1755721853829,-150.0,0.00028446,7]
[380388324,1755721853839,-150.0,0.00028466,30]
[380388325,1755721853848,-150.0,0.00028478,7]
[380388326,1755721853858,-495.0,0.00028479,14]
[380388327,1755721853867,-400.0,0.00028493,2]
[380388328,1755721853876,-546.0,0.00028493,14]
[380388329,1755721853886,-181.13644639,0.00028493,5]
[380388330,1755721853898,-150.0,0.00028493,7]
[380388331,1755721853907,-150.0,0.00028493,7]
[380388332,1755721853918,-500.0,0.00028494,2]
[380388333,1755721853927,-453.0,0.00028494,2]
[380388334,1755721853936,-500.0,0.00028494,2]
[380388335,1755721853946,-500.0,0.00028494,2]
[380388336,1755721853955,-164.45014642,0.00028494,2]
[380388337,1755721853965,-500.0,0.00028494,2]
[380388338,1755721853975,-849.51,0.000285,30]
[380388339,1755721853985,-1000.0,0.000285,2]
[380388340,1755721853994,-150.0,0.00028501,7]
[380388341,1755721854004,-332.60791905,0.00028515,2]
[380388342,1755721854015,-150.0,0.00028531,7]
[380388343,1755721854027,-150.0,0.00028531,7]
[380388344,1755721854038,-150.0,0.00028541,7]
[380388345,1755721854050,-150.0,0.00028545,7]
[380388346,1755721854060,-150.0,0.0002856,7]
[380388347,1755721854069,-167.22463356,0.00028568,5]
[380388348,1755721854078,-350.0,0.00028568,5]
[380388349,1755721854087,-150.0,0.00028582,7]
[380388350,1755721854098,-150.0,0.00028588,7]
[380388351,1755721854109,-150.0,0.00028588,7]
[380388352,1755721854119,-1052.84,0.000286,30]
[380388353,1755721854130,-150.0,0.00028603,7]
[380388354,1755721854142,-150.0,0.00028622,7]
[380388355,1755721854151,-400.0,0.0002863,2]
[380388356,1755721854163,-150.0,0.00028635,7]
[380388357,1755721854172,-150.0,0.00028641,7]
[380388358,1755721854182,-150.0,0.00028682,7]
[380388359,1755721854192,-150.0,0.00028682,7]
[380388360,1755721854201,-150.0,0.00028682,7]
[380388361,1755721854210,-150.0,0.00028682,7]
[380388362,1755721854219,-150.0,0.00028682,7]
[380388363,1755721854230,-150.0,0.00028682,7]
[380388364,1755721854239,-700.0,0.00028696,7]
[380388365,1755721854249,-200.0,0.00028721,2]
[380388366,1755721854259,-150.0,0.00028723,7]
[380388367,1755721854269,-150.0,0.00028729,7]
[380388368,1755721854278,-150.0,0.00028743,7]
[380388369,1755721854287,-150.0,0.00028762,7]
[380388370,1755721854297,-400.0,0.00028767,2]
[380388371,1755721854307,-444.0,0.00028767,14]
[380388372,1755721854316,-330.0,0.00028767,14]
[380388373,1755721854326,-266.0,0.00028767,14]
[380388374,1755721854335,-272.0,0.00028767,14]
[380388375,1755721854345,-197.0,0.00028767,14]
[380388376,1755721854354,-546.0,0.00028767,14]
[380388377,1755721854364,-500.0,0.00028768,2]
[380388378,1755721854373,-453.0,0.00028768,2]
[380388379,1755721854383,-500.0,0.00028768,2]
[380388380,1755721854392,-450.06902607,0.00028768,2]
[380388381,1755721854402,-500.0,0.00028768,2]
[380388382,1755721854413,-1500.0,0.00028768,5]
[380388383,1755721854422,-150.0,0.00028777,7]
[380388384,1755721854432,-150.0,0.00028777,7]
[380388385,1755721854442,-150.0,0.00028783,7]
[380388386,1755721854451,-538.01,0.00028795,2]
[380388387,1755721854461,-150.0,0.00028805,7]
[380388388,1755721854470,-473.08152029,0.00028819,2]
[380388389,1755721854481,-150.0,0.00028819,7]
[380388390,1755721854492,-150.0,0.00028824,7]
[380388391,1755721854502,-150.0,0.00028833,7]
[380388392,1755721854513,-150.0,0.00028833,7]
[380388393,1755721854524,-150.0,0.00028863,7]
[380388394,1755721854536,-150.0,0.00028871,7]
[380388395,1755721854545,-150.0,0.00028871,7]
[380388396,1755721854555,-1466.39571027,0.0002888,2]
[380388397,1755721854565,-150.0,0.00028886,7]
[380388398,1755721854576,-5278.2743,0.000289,2]
[380388399,1755721854587,-400.0,0.00028904,2]
[380388400,1755721854598,-1186.47,0.00028904,9]
[380388401,1755721854609,-150.0,0.00028918,7]
[380388402,1755721854618,-150.0,0.00028921,7]
[380388403,1755721854628,-150.0,0.00028965,7]
[380388404,1755721854637,-150.0,0.00028965,7]
[380388405,1755721854646,-167.7,0.00028966,2]
[380388406,1755721854656,-150.0,0.00028968,7]
[380388407,1755721854667,-185.86817473,0.00028968,5]
[380388408,1755721854677,-500.0,0.0002897,7]
[380388409,1755721854686,-1704.4308277,0.0002898,2]
[380388410,1755721854695,-150.0,0.00028984,7]
[380388411,1755721854705,-150.0,0.00028984,7]
[380388412,1755721854714,-150.0,0.00028984,7]
[380388413,1755721854723,-150.0,0.00028984,7]
[380388414,1755721854732,-150.0,0.00028984,7]
[380388415,1755721854741,-150.0,0.00028989,2]
[380388416,1755721854751,-394.0,0.00028997,14]
[380388417,1755721854761,-426.0,0.00028997,14]
[380388418,1755721854770,-1321.0,0.00028997,14]
[380388419,1755721854779,-1321.0,0.00028997,14]
[380388420,1755721854789,-165.0,0.00028997,14]
[380388421,1755721854799,-159.0,0.00028997,14]
[380388422,1755721854808,-1590.28,0.00028999,2]
[380388423,1755721854817,-50963.30331772,0.00029,2]
[380388424,1755721854826,-229561.20181236,0.00029,2]
[380388425,1755721854836,-500.75490201,0.00029,2]
[380388426,1755721854845,-1000.0,0.00029,7]
[380388427,1755721854854,-1000.0,0.00029,7]
[380388428,1755721854863,-250.0,0.00029,29]
[380388429,1755721854872,-150.0,0.00029,30]
[380388430,1755721854882,-113036.1395266,0.00029,12]
[380388431,1755721854891,-3600.0,0.00029,30]
[380388432,1755721854900,-160.0,0.00029,10]
[380388433,1755721854909,-1266.0,0.00029,30]
[380388434,1755721854921,-203.0,0.00029,30]
[380388435,1755721854930,-289.623771,0.00029,7]
[380388436,1755721854939,-234.321984,0.00029,7]
[380388437,1755721854949,-151.0,0.00029,7]
[380388438,1755721854958,-151.0,0.00029,7]
[380388439,1755721854968,-170.931532,0.00029,7]
[380388440,1755721854977,-151.0,0.00029,7]
[380388441,1755721854987,-185.810883,0.00029,7]
[380388442,1755721854996,-211.396164,0.00029,7]
[380388443,1755721855005,-151.0,0.00029,7]
[380388444,1755721855014,-151.0,0.00029,7]
[380388445,1755721855023,-151.0,0.00029,7]
[380388446,1755721855033,-151.0,0.00029,7]
[380388447,1755721855042,-151.0,0.00029,7]
[380388448,1755721855051,-151.0,0.00029,7]
[380388449,1755721855061,-151.0,0.00029,7]
[380388450,1755721855070,-151.0,0.00029,7]
[380388451,1755721855079,-151.0,0.00029,7]
[380388452,1755721855088,-151.0,0.00029,7]
[380388453,1755721855099,-151.0,0.00029,7]
[380388454,1755721855110,-151.0,0.00029,7]
[380388455,1755721855119,-199.70256,0.00029,7]
[380388456,1755721855128,-151.0,0.00029,7]
[380388457,1755721855137,-151.0,0.00029,7]
[380388458,1755721855146,-151.0,0.00029,7]
[380388459,1755721855157,-151.0,0.00029,7]
[380388460,1755721855166,-151.0,0.00029,7]
[380388461,1755721855177,-151.0,0.00029,7]
[380388462,1755721855187,-151.0,0.00029,7]
[380388463,1755721855197,-151.0,0.00029,7]
[380388464,1755721855206,-151.0,0.00029,7]
[380388465,1755721855216,-151.0,0.00029,7]
[380388466,1755721855225,-151.0,0.00029,7]
[380388467,1755721855235,-151.0,0.00029,7]
[380388468,1755721855244,-151.0,0.00029,7]
[380388469,1755721855255,-151.0,0.00029,7]
[380388470,1755721855264,-151.0,0.00029,7]
[380388471,1755721855274,-151.0,0.00029,7]
[380388472,1755721855284,-151.0,0.00029,7]
[380388473,1755721855293,-151.0,0.00029,7]
[380388474,1755721855303,-151.0,0.00029,7]
[380388475,1755721855313,-151.0,0.00029,7]
[380388476,1755721855323,-151.0,0.00029,7]
[380388477,1755721855332,-151.0,0.00029,7]
[380388478,1755721855342,-151.0,0.00029,7]
[380388479,1755721855351,-151.0,0.00029,7]
[380388480,1755721855360,-458.46930693,0.00029,30]
[380388481,1755721855369,-151.0,0.00029,7]
[380388482,1755721855379,-190.093354,0.00029,7]
[380388483,1755721855389,-151.0,0.00029,7]
[380388484,1755721855398,-190.093354,0.00029,7]
[380388485,1755721855407,-151.0,0.00029,7]
[380388486,1755721855417,-151.0,0.00029,7]
[380388487,1755721855428,-151.0,0.00029,7]
[380388488,1755721855437,-190.093354,0.00029,7]
[380388489,1755721855447,-190.093354,0.00029,7]
[380388490,1755721855457,-151.0,0.00029,7]
[380388491,1755721855467,-151.0,0.00029,7]
[380388492,1755721855477,-151.0,0.00029,7]
[380388493,1755721855486,-151.0,0.00029,7]
[380388494,1755721855496,-4000.0,0.00029,4]
[380388495,1755721855506,-2097.1034681,0.00029003,2]
[380388496,1755721855516,-150.0,0.00029012,7]
[380388497,1755721855526,-150.0,0.00029014,30]
[380388498,1755721855536,-400.0,0.00029041,2]
[380388499,1755721855547,-1444.0,0.00029041,120]
[380388500,1755721855557,-500.0,0.00029042,2]
[380388501,1755721855567,-453.0,0.00029042,2]
[380388502,1755721855578,-500.0,0.00029042,2]
[380388503,1755721855588,-500.0,0.00029042,2]
[380388504,1755721855598,-150.0,0.00029049,7]
[380388505,1755721855755,-150.0,0.0002906,7]
[380388506,1755721855765,-150.0,0.0002906,7]
[380388507,1755721855774,-150.0,0.00029079,7]
[380388508,1755721855784,-1632.4469419,0.0002909,2]
[380388509,1755721855793,-151.0,0.00029091,7]
[380388510,1755721855802,-222.089162,0.00029091,7]
[380388511,1755721855811,-222.089162,0.00029091,7]
[380388512,1755721855821,-222.089162,0.00029091,7]
[380388513,1755721855830,-222.089162,0.00029091,7]
[380388514,1755721855839,-151.0,0.00029091,7]
[380388515,1755721855848,-151.0,0.00029091,7]
[380388516,1755721855857,-151.0,0.00029091,7]
[380388517,1755721855866,-151.0,0.00029091,7]
[380388518,1755721855875,-151.0,0.00029091,7]
[380388519,1755721855884,-275.910648,0.00029091,7]
[380388520,1755721855893,-151.0,0.00029091,7]
[380388521,1755721855903,-151.0,0.00029091,7]
[380388522,1755721855912,-151.0,0.00029091,7]
[380388523,1755721855922,-151.0,0.00029091,7]
[380388524,1755721855931,-151.0,0.00029091,7]
[380388525,1755721855940,-151.0,0.00029091,7]
[380388526,1755721855949,-151.0,0.00029091,7]
[380388527,1755721855959,-151.0,0.00029091,7]
[380388528,1755721855968,-151.0,0.00029091,7]
[380388529,1755721855977,-151.0,0.00029091,7]
[380388530,1755721855986,-151.0,0.00029091,7]
[380388531,1755721855995,-427.754815,0.00029091,7]
[380388532,1755721856004,-427.754815,0.00029091,7]
[380388533,1755721856013,-427.754815,0.00029091,7]
[380388534,1755721856022,-427.754815,0.00029091,7]
[380388535,1755721856031,-151.0,0.00029091,7]
[380388536,1755721856041,-151.0,0.00029091,7]
[380388537,1755721856049,-151.0,0.00029091,7]
[380388538,1755721856058,-151.0,0.00029091,7]
[380388539,1755721856067,-151.0,0.00029091,7]
[380388540,1755721856076,-151.0,0.00029091,7]
[380388541,1755721856085,-151.0,0.00029091,7]
[380388542,1755721856094,-245.082016,0.00029091,7]
[380388543,1755721856107,-214.645999,0.00029091,7]
[380388544,1755721856116,-214.645999,0.00029091,7]
[380388545,1755721856125,-214.645999,0.00029091,7]
[380388546,1755721856134,-214.646005,0.00029091,7]
[380388547,1755721856143,-151.0,0.00029091,7]
[380388548,1755721856152,-151.0,0.00029091,7]
[380388549,1755721856161,-151.0,0.00029091,7]
[380388550,1755721856171,-64418.6816398,0.00029091,2]
[380388551,1755721856183,-150.0,0.00029094,7]
[380388552,1755721856193,-150.0,0.00029105,7]
[380388553,1755721856202,-150.0,0.00029107,7]
[380388554,1755721856212,-56623.74099512,0.0002911,11]
[380388555,1755721856221,-450.0,0.00029116,5]
[380388556,1755721856230,-150.0,0.00029131,7]
[380388557,1755721856240,-150.0,0.00029135,7]
[380388558,1755721856250,-150.0,0.00029135,7]
[380388559,1755721856259,-150.0,0.00029154,7]
[380388560,1755721856269,-150.0,0.00029154,7]
[380388561,1755721856281,-15278.8546474,0.00029155,2]
[380388562,1755721856300,-1053.7203938,0.00029166,2]
[380388563,1755721856317,-2222.22,0.00029173,30]
[380388564,1755721856328,-272.48455636,0.00029178,2]
[380388565,1755721856340,-150.0,0.00029185,7]
[380388566,1755721856350,-7318.2,0.000292,7]
[380388567,1755721856361,-150.0,0.00029201,7]
[380388568,1755721856375,-150.0,0.00029213,7]
[380388569,1755721856384,-150.0,0.00029226,7]
[380388570,1755721856393,-150.0,0.00029238,7]
[380388571,1755721856403,-150.0,0.00029248,7]
[380388572,1755721856412,-150.0,0.00029248,7]
[380388573,1755721856422,-1836.37,0.00029248,30]
[380388574,1755721856432,-226.0,0.0002927,2]
[380388575,1755721856441,-1817.46,0.00029283,10]
[380388576,1755721856451,-150.0,0.00029286,7]
[380388577,1755721856460,-150.0,0.00029286,7]
[380388578,1755721856470,-150.0,0.00029286,7]
[380388579,1755721856479,-150.0,0.00029294,7]
[380388580,1755721856489,-150.0,0.00029295,7]
[380388581,1755721856498,-500.0,0.00029316,2]
[380388582,1755721856507,-453.0,0.00029316,2]
[380388583,1755721856517,-500.0,0.00029316,2]
[380388584,1755721856526,-515.0,0.00029316,2]
[380388585,1755721856535,-937.19609817,0.00029316,5]
[380388586,1755721856544,-500.0,0.00029321,2]
[380388587,1755721856553,-500.0,0.00029321,2]
[380388588,1755721856562,-473.08152029,0.00029329,2]
[380388589,1755721856571,-446.31868186,0.00029337,2]
[380388590,1755721856580,-150.0,0.00029343,7]
[380388591,1755721856589,-150.0,0.00029343,7]
[380388592,1755721856598,-150.0,0.00029346,7]
[380388593,1755721856608,-495.0,0.0002936,14]
[380388594,1755721856617,-467.9270326,0.00029361,2]
[380388595,1755721856626,-150.0,0.00029367,2]
[380388596,1755721856635,-150.0,0.00029368,7]
[380388597,1755721856644,-150.0,0.00029376,7]
[380388598,1755721856654,-150.0,0.00029387,7]
[380388599,1755721856663,-150.0,0.0002939,7]